{"text_format":"1","workbook":"xlsx","n_sheets":7,"sheets":["Instructions","Matrix","Project Information","Credit Reporting ","Initiatives","Revised Data","Theme, Categories, Credits"],"not_rendered":{"charts":0,"images":1,"macros":1,"external_links":0,"defined_names":10,"comments":0,"pivot_tables":0},"unopened":[],"bounds":{"document_bytes":16777216,"sheet_cells":100000,"rows_first":2000,"rows_last":500,"rows_between":2000,"halvings":0,"cell_chars":16384,"cell_head_chars":4096},"cells_cut":0,"cells_raw":0,"read":"whole","date_system":"1900"}

{"sheet":"Instructions","index":0,"n_rows":39,"n_cols":13,"rows_kept":39,"cut":false,"hidden":false,"merged":[[14,6,15,7],[14,0,15,0],[19,1,19,4],[19,6,19,7],[21,0,21,9],[17,0,17,9],[18,0,18,9],[38,5,38,9],[38,0,38,4],[9,1,9,3],[9,6,9,7],[11,0,11,9],[23,0,23,9],[37,0,37,9],[36,0,36,9],[24,0,24,9],[12,0,13,9],[33,0,33,2],[33,3,33,9],[34,0,34,2],[34,3,34,9],[14,1,15,4],[14,5,15,5],[0,0,1,9],[8,1,8,3],[3,1,3,3],[5,1,5,6],[7,1,7,3],[7,6,7,7],[23,12,25,20],[22,12,22,20],[26,12,26,20],[27,12,29,20],[35,0,35,9],[26,0,26,9],[27,0,27,9],[30,0,30,2],[30,3,30,9],[31,0,31,2],[31,3,31,9],[28,0,28,9],[29,0,29,9],[22,0,22,9],[25,0,25,9]]}
["MAJOR PROJECTS: MONTHLY SUSTAINABILITY PROGRESS REPORT\n"]
[]
["Contractor Details"]
["Contractor","[NAME]",null,null,null,"Month","[MMM]","Year","[YYYY]"]
[]
["Project","[NAME]",null,null,null,null,null,"Contract #"]
[]
["Prepared by","[NAME]",null,null,null,"Region","[REGION]"]
[]
["Sustainability Lead","[NAME]",null,null,null,"Planning/Design/As Built"]
[]
["DECLARATION"]
["I hereby declare that the answers given in this report describe our current Company's performance for the Contract and contract period stated above.  I acknowledge the right of Main Roads to further verify our stated performance by audit."]
[]
["Name ","[NAME]",null,null,null,"Date","[DATE]"]
[]
[]
["MAIN ROADS APPROVAL"]
["The Main Roads Representative has received and approved information in this report, and this information provides an accurate representation for the project. "]
["Name (Main Roads Representative)","[NAME]",null,null,null,"Date","[DATE]"]
[]
["INSTRUCTIONS FOR COMPLETING",null,null,null,null,null,null,null,null,null,null,"Definitions"]
["The Monthly Sustainability Progress Report is an important part of communication between all parties. The information from this report is utilised in compliance monitoring and Main Roads quarterly and annual reporting.",null,null,null,null,null,null,null,null,null,null,"Opportunity","A potential initiative that is developed in the risk and opportunity assessment(s) undertaken throughout the project. This can relate to Infrastructure Sustainability Council (ISC) credit Lea-2 Risk and Opportunities. "]
["All fields are required to be complete upon submission. Incomplete reports or inappropriate responses will not be accepted. Similarly, any changes to the formatting of this report will result be rejected and will require resubmission. Please use a new text colour to differentiate between a previous months information and the current months information in this report.",null,null,null,null,null,null,null,null,null,null,null,"A leading action; readiness and ability in initiating action. An initiative is developed through the Risk and Opportunity process. This in a opportunity that has been evaluated, deemed suitable and is to be actioned/incorporated into the project. \nIf an initiative was not proposed during tender and is being implemented during design and construction, it requires approval from the project manager prior to inclusion in reports. Generally an initiative is an opportunity that has been deemed beneficial/worthwhile and has (usually) a greater than Medium rating as defined in the Matrix. "]
["1. Complete the 'Project Information' tab. Hovering over each cell will provide further detail and instruction on the information required. Please note, some details are automatically filled based on the declaration information above. ",null,null,null,null,null,null,null,null,null,null,"Initiative"]
["2. Report the status of each credit in the 'Credit Reporting' tab. Note that some of this information requires you to select an option from a drop down menu, and others will require free text. Hovering over each column heading will provide further detail and instruction on the information required. Please note that the dropdown for 'Category' is dependent on the 'Theme' drop down. The 'Credit' dropdown is dependent on the 'Technical Manual Used for Credit' dropdown. Credits are to be input in the same order as the Technical Manual. "]
["3. Complete the 'Initiatives' tab for all sustainability initiatives that have been implemented or are in preparation to be implemented on the project. At a minimum report the sustainability initiatives proposed at tender and included in the projects opportunity register or proposed to be claimed as an innovation. Provide detailed information to ensure it can clearly be identified and what benefits it will bring to the project. Please note initiatives may be recorded in a corporate register to be used for knowledge sharing between projects. When assessing an opportunity for inclusion as an initiative, use the opportunity matrix (further detailed in the 'Matrix' tab) to assess its rating. Hovering over each column heading will provide further detail and instruction on the information required. Definitions have been provided to the right of this instruction table to guide the reporting of initiatives.",null,null,null,null,null,null,null,null,null,null,"Innovation","An innovation is a type of initiative. Innovation is the creation of better or more effective products, processes, services, technologies, or ideas that are accepted by markets, governments, and society. Innovation is the creation of better or more effective products, processes, services, technologies, or ideas that are accepted by markets, governments, and society."]
["4. Completed reports are expected to have been subject to review and approval by senior project management prior to submission to Main Roads. Completed reports are to be sent to the Main Roads Representative by the 5th day of the following month."]
["CONTRACTOR NOTES"]
["Use this section to outline any notes associated with a certain section of the report. Ensure to refer to the report section and to document your comment for Main Roads to refer/consider. "]
["REPORT SECTION",null,null,"COMMENT"]
[]
[]
[]
[]
["CONFIDENTIALITY"]
["Main Roads confirms that all information provided in this report will be dealt with in the strictest confidence by Main Roads personnel, employees and agents."]
["FOR OFFICE USE ONLY"]
["On receipt of completed reports, Main Road officers to email a copy to:",null,null,null,null,"ContractorMonthlyReports@mainroads.wa.gov.au"]

{"sheet":"Matrix","index":1,"n_rows":59,"n_cols":10,"rows_kept":59,"cut":false,"hidden":false,"merged":[[3,8,4,8],[43,3,43,4],[44,3,46,4],[47,9,49,9],[50,9,52,9],[33,3,33,7],[44,6,46,8],[43,5,43,8],[44,9,46,9],[44,2,46,2],[47,2,49,2],[50,2,52,2],[53,2,55,2],[3,1,4,1],[3,2,4,2],[33,1,34,2],[35,1,39,1],[43,1,58,1],[56,2,58,2],[24,1,29,1],[56,9,58,9],[56,3,58,4],[53,3,55,4],[47,3,49,4],[50,3,52,4],[50,6,50,8],[51,6,51,8],[52,6,52,8],[47,6,49,8],[56,6,56,8],[57,6,57,8],[58,6,58,8],[53,6,53,8],[54,6,54,8],[53,9,55,9],[55,6,55,8]]}
["Matrix"]
["Opportunity Impact Criteria"]
[]
[null,"Level of Benefit Rating (Impact)","Design / Specification (Resource impact)","Cost","Time / Schedule","Local Supply Chain Content","Aboriginal Supply Chain / Employment","Customer Reputation","Environment / Heritage"]
[null,null,null,"(Financial)","(Financial)","(Non-financial)","(Non-financial)","(Non-financial)"]
[null,"Significant","-       Reduces material, energy or water consumption by >10%.","-       Return on investment <5 years.","-       Efficiency >10% of schedule saving.","-       Builds new local supply chain capability","-       Builds new Aboriginal supply chain capability.","-       Significant increase in reputation / positive state-wide engagement ","-       Significant enhancement of ecological or heritage values."]
[null,5,null,"OR",null,"-       Local content >50%.","-       Aboriginal Content >10%.","-       State-wide positive sentiment","OR"]
[null,null,null,"-       Efficiency >1.5% of contract value.",null,null,"-       >10% Aboriginal employment.","-       Consistent State-wide positive media attention","-       Significant positive residual effect environmental and heritage values of the area."]
[null," Major ","-       - Reduces material, energy or water consumption by >5%.","-       Return on investment 5 - 9 years.","-       Efficiency >5% of schedule saving.","-       Creates additional flexibility chain capability ","-       Creates additional flexibility or reinforces Aboriginal Supply Chain.","-       Positive Perth Metro engagement / reputation.","-       Substantial reduction/avoidance of negative impacts across a large portion of the project or isolated enhancement."]
[null,4,null,"OR",null,"-       Local content >25%.","-       Aboriginal Content >5%","-       Creates positive political sentiment.","OR"]
[null,null,null,"-       Efficiency >1.0-1.5% of contract value.",null,null,"-       5-10% increase Aboriginal employment.","-       State-wide positive media attention lasting days.","-       Substantial positive residual effect on local environmental and heritage values of the area."]
[null,"Moderate ","-       Reduces material, energy or water consumption by >2%.","-       Return on investment 10-14 years.","-       Efficiency >2% of schedule savings.","-       Reinforces local supply chain capability","-       Aboriginal Content >3%","-       Increase of confidence and trust by community and stakeholders in agency processes and capability.","-       Reduction in negative impacts across a large portion of the project."]
[null,3,null,"OR",null,"-       Local content >10%.","-       3-5% increase Aboriginal employment.","Once-off State positive media attention.","OR"]
[null,null,null,"-       Efficiency >0.5-1.0% of contract value.",null,null,null,null,"-       Medium term positive residual effect on environmental and heritage values of the area."]
[null,"Minor ","-       Reduces material, energy or water consumption by >1%.","-       Return on investment 15-20 years.","-       Efficiency >1% of schedule savings.","-       Local content >5%.","-       Aboriginal Content >1%","-       Increased positive sentiment.","-       Significant reduction in negative impacts to an isolated area."]
[null,2,null,"OR",null,null,"-       1-2% increase Aboriginal employment.","One-off significant increase of confidence/ trust by community and stakeholders in agency processes and capability.","OR"]
[null,null,null,"-       Efficiency >0.1-0.5% of contract value.",null,null,null,"-       State Government accolade.","-       Short-term positive residual effect on environmental and heritage values of the area."]
[null,null,null,null,null,null,null,"-       Occasional positive localised community media attention. "]
[null,"Insignificant ","-       Reduces material, energy or water consumption by <1%.","-       Return on investment >20 years.","-       Efficiency <1% of schedule savings.","-       Local content <5%.","-       Aboriginal Supply / Content <1%","-       Creates isolated local community or individualised engagement and positivity / ideas.","-       Minimal reduction in negative impacts to isolated area."]
[null,1,null,"OR",null,null,"-       0-1% increase Aboriginal employment e.g. traineeship, apprenticeship, direct and indirect employment).  ","-       Increased directly affected stakeholder positive sentiment.","OR"]
[null,null,null,"-       Efficiency <0.1% of contract value.",null,null,null,"-       Low profile positive media attention.","-       No lasting positive effect on environmental and heritage values of the area."]
[]
["Effort Level Definitions"]
[]
[null,"Effort","Level","Rating","Investment"," Effort","Industry Practice","Integration with Processes"]
[null,null,5,"Very easy","No significant cost to implementing sustainability opportunity <0.1% of contract value","Very low","Business as usual.","Existing Specification / Policy Requirement"]
[null,null,4,"Easy","Minor cost to implementing sustainability opportunity >0.1-0.5% of contract value","Low","Small changes to standard methods, but will eventually become BAU. No additional support needed.","Mandated in Project SWTC for Delivery"]
[null,null,3,"Possible","Some cost to implementing sustainability opportunity >0.5-1.0% of contract value","Medium","Changes to standard methods, requiring once off or infrequent support in the form of training packages/modules, investigations etc.","Included in SWTC for contractor consideration only"]
[null,null,2,"Hard","Significant cost to implementing sustainability opportunity >1.0-1.5% of contract value","High","Large changes to standard methods, requiring some ongoing support outside of current resourced project team roles.","Not precluded by specification"]
[null,null,1,"Very Hard","Major cost to implementing sustainability opportunity >1.5% of contract value","Very High","Very large changes to standard methods, requiring ongoing support outside of current resourced project team roles.","Not an SWTC or Specification Requirement"]
[null,null,null,null,null,null,null,null,null,"Insignificant (1)"]
["Opportunity Rating Matrix",null,null,null,null,null,null,null,null,"Minor (2)"]
[null,null,null,null,null,null,null,null,null,"Moderate (3)"]
[null,"OPPORTUNITY ASSESSMENT\nMATRIX",null,"IMPACT",null,null,null,null,null,"Major (4)"]
[null,null,null,"Insignificant (1)","Minor (2)","Moderate (3)","Major (4)","Significant (5)",null,"Significant (5)"]
[null,"EFFORT","Very Easy (5)","Medium 5","High 10","High 15","Very High 20","Very High 25"]
[null,null,"Easy (4)","Low 4","Medium 8","High 12","Very High 16","Very High 20"]
[null,null,"Possible (3)","Low 3","Medium 6","Medium 9","High 12","High 15"]
[null,null,"Hard (2)","Very Low 2","Low 4","Medium 6","Medium 8","High 10"]
[null,null,"Very Hard (1)","Very Low 1","Very Low 2","Low 3","Low 4","Medium 5"]
[null,null,1,2,3,4,5,6]
["Opportunity Definitions and Response"]
[]
[null,"OPPORTUNITY ASSESSMENT","Opportunity Rating","Level of Opportunity",null,"Opportunity Response",null,null,null,"Management Oversight"]
[null,null,"Very Low (1-2)","Opportunity impact in relation to effort \ndoes not warrant implementation. ",null,"Planning","Opportunity should be abandoned and not pursued as an initiative.Very Low initiatives are not to be reported.",null,null,"N/A"]
[null,null,null,null,null,"Tender"]
[null,null,null,null,null,"Delivery"]
[null,null,"Low (3-4)","Opportunity impact in relation to effort \nlikely does not warrant implementation.  ",null,"Planning","Opportunity only to be implemented as an initiative if no higher ranked opportunities are identified and Project Manager deems acceptable. Only to be reported if implemented.",null,null,"l Reviewed by Opportunity Owner\nl     Reviewed by Sustainability Advisor \nl Reviewed by Asset Management if applicable. \nl Endorsed by Main Roads  Representative/Project  Manager"]
[null,null,null,null,null,"Tender"]
[null,null,null,null,null,"Delivery"]
[null,null,"Medium (5-9)","The opportunity may be acceptable.",null,"Planning","Undertake additional investigation and provide to Project Manager for decision. Include in reporting if implemented or abandoned.",null,null," l Reviewed by Opportunity Owner\n l     Reviewed by Sustainability Advisor \n l Reviewed by Asset Management if applicable. \n l Endorsed by Main Roads  Representative/Project  Manager"]
[null,null,null,null,null,"Tender","Undertake additional investigation and provide to Project Manager for decision and SWTC inclusion.  Include in reporting if implemented or abandoned."]
[null,null,null,null,null,"Delivery","Undertake additional investigation and provide to Project Manager for decision.  Include in reporting if implemented or abandoned."]
[null,null,"High (10-15)","The opportunity is generally acceptable.",null,"Planning","Undertake additional investigation and provide to Project Manager to confirm desirability rating (Mandatory or Optional).  Include in reporting if implemented or abandoned. Lessons learnt report to be included for all implemented and abandoned initatives. ",null,null,"  l Reviewed by Opportunity Owner\n  l     Reviewed by Sustainability Advisor \n  l Reviewed by Asset Management if applicable. \n  l Endorsed by Main Roads  Representative/Project  Manager"]
[null,null,null,null,null,"Tender","Include in SWTC, undertake additional investigation and provide to Project Manager and Project Director to confirm the SWTC Artefact/Clause Type (Process, Technical, Scope).Include in reporting if implemented or abandoned. Lessons learnt report to be included for all implemented and abandoned initatives."]
[null,null,null,null,null,"Delivery","Undertake additional investigation and provide to Project Manager and Project Director to confirm if Change Notification is required. Include in reporting if implemented or abandoned. Lessons learnt report to be included for all implemented and abandoned initatives. "]
[null,null,"Very High (17-25)","The opportunity is considered acceptable. ",null,"Planning","Opportunity should be implemented, as an initiative, Project Manager to include “Mandatory” requirement. Include in reporting if implemented or abandoned. A case study must be undertaken for all initiatives for all implemented and abandoned initatives. ",null,null," l Reviewed by Opportunity Owner\n l     Reviewed by Sustainability Advisor \n l Reviewed by Asset Management if applicable. \n l Endorsed by Main Roads  Representative/Project  Manager"]
[null,null,null,null,null,"Tender","Opportunity should be implemented, as an initiative, Project Manager to include technical Requirement in SWTC.   A case study must be undertaken for all initiatives for all implemented and abandoned initatives. "]
[null,null,null,null,null,"Delivery","Opportunity should be implemented, as an initiative, change notification not required.  A case study must be undertaken for all initiatives for all implemented and abandoned initatives. "]

{"sheet":"Project Information","index":2,"n_rows":42,"n_cols":4,"rows_kept":42,"cut":false,"hidden":false,"merged":[[75,10,76,10],[75,11,76,11],[0,0,0,1],[0,3,0,4],[2,3,21,3],[23,3,24,3],[25,3,41,3]]}
["PROJECT INFORMATION",null,null,"GENERAL COMMENTS"]
[]
["Name of Project",{"$f":"Instructions!B6","v":"[NAME]"}]
["Contract Number",{"$f":"Instructions!I6","v":0}]
["Date Project Awarded"]
["Link to the IS SharePoint site"]
[]
["Contact Person for Report",{"$f":"Instructions!B15","v":"[NAME]"}]
["Project Sustainability Lead",{"$f":"Instructions!B10","v":"[NAME]"}]
["Current Main Roads Project Director"]
["Current Main Roads Representative",{"$f":"Instructions!B20","v":"[NAME]"}]
["Contract Value of Project"]
["Month of Reporting Period",{"$f":"Instructions!G4","v":"[MMM]"}]
["Date of Report",{"$f":"Instructions!G15","v":"[DATE]"}]
[]
["IS Technical Manual Version Used"]
["Rating Assessment"]
["Current Rating Phase"]
["Contractual Target Score"]
["Stretch Target Score"]
["Projected Rating Score"]
["Calculated Working Score"]
[]
["Base Case Submission Status",null,null,"UPCOMING ACTIONS/DELIVERABLES"]
["Date of Base Case Submission/Verification"]
["Materiality Assessment Submission Status"]
["Date of Materiality Assessment Submission/Verification"]
["Planning Submission Status"]
["Date of Planning Rating Submission"]
["Estimated/Date of Final Design Documentation"]
["Design Submission Status"]
["Date of Design Rating Submission"]
["Verified Design Score"]
["Estimated/Date of Practical Completion"]
["As Built Submission Status"]
["Date of As Built Rating Submission"]
[]
["Date of Last Sustainability Audit"]
["Date of Next Sustainability Audit"]
["Date of Last Sustainability Presentation"]
["Date of Next Sustainability Presentation"]
["Date of Final Sustainability Reports"]

{"sheet":"Credit Reporting ","index":3,"n_rows":1,"n_cols":17,"rows_kept":1,"cut":false,"hidden":false,"merged":[]}
["Theme","Category","Technical Manual Used for Credit","Credit ","Contractually Mandated","Contract Mandatory Minimum","Current Tasks and Actions","Issues and Risks","Lessons Learnt","Status Update","Risk of Not Achieving","Materiality Score","Maximum Score Possible","Target Level","Target Score","Tracking Level","Tracking Score"]

{"sheet":"Initiatives","index":4,"n_rows":100,"n_cols":17,"rows_kept":100,"cut":false,"hidden":false,"merged":[]}
["Reference Code","Initiative Title ","Initiative Description","Expected Outcomes","Associated IS Credit","Category Tag","Contractually Mandated","Effort","Impact","Rating","Date Completed","Status Update","Current Tasks and Actions","Issues and Risks","Lessons Learnt","Upfront Project Associated Costs","Project Life Associated Costs"]
[null,null,null,null,null,null,null,null,null,{"$f":"VLOOKUP(H2,Matrix!$C$36:$H$40,HLOOKUP(I2,Matrix!$D$35:$H$41,7,FALSE),FALSE)","v":{"$error":"#N/A"}}]
[null,null,null,null,null,null,null,null,null,{"$f":"VLOOKUP(H3,Matrix!$C$36:$H$40,HLOOKUP(I3,Matrix!$D$35:$H$41,7,FALSE),FALSE)","v":{"$error":"#N/A"}}]
[null,null,null,null,null,null,null,null,null,{"$f":"VLOOKUP(H4,Matrix!$C$36:$H$40,HLOOKUP(I4,Matrix!$D$35:$H$41,7,FALSE),FALSE)","v":{"$error":"#N/A"}}]
[null,null,null,null,null,null,null,null,null,{"$f":"VLOOKUP(H5,Matrix!$C$36:$H$40,HLOOKUP(I5,Matrix!$D$35:$H$41,7,FALSE),FALSE)","v":{"$error":"#N/A"}}]
[null,null,null,null,null,null,null,null,null,{"$f":"VLOOKUP(H6,Matrix!$C$36:$H$40,HLOOKUP(I6,Matrix!$D$35:$H$41,7,FALSE),FALSE)","v":{"$error":"#N/A"}}]
[null,null,null,null,null,null,null,null,null,{"$f":"VLOOKUP(H7,Matrix!$C$36:$H$40,HLOOKUP(I7,Matrix!$D$35:$H$41,7,FALSE),FALSE)","v":{"$error":"#N/A"}}]
[null,null,null,null,null,null,null,null,null,{"$f":"VLOOKUP(H8,Matrix!$C$36:$H$40,HLOOKUP(I8,Matrix!$D$35:$H$41,7,FALSE),FALSE)","v":{"$error":"#N/A"}}]
[null,null,null,null,null,null,null,null,null,{"$f":"VLOOKUP(H9,Matrix!$C$36:$H$40,HLOOKUP(I9,Matrix!$D$35:$H$41,7,FALSE),FALSE)","v":{"$error":"#N/A"}}]
[null,null,null,null,null,null,null,null,null,{"$f":"VLOOKUP(H10,Matrix!$C$36:$H$40,HLOOKUP(I10,Matrix!$D$35:$H$41,7,FALSE),FALSE)","v":{"$error":"#N/A"}}]
[null,null,null,null,null,null,null,null,null,{"$f":"VLOOKUP(H11,Matrix!$C$36:$H$40,HLOOKUP(I11,Matrix!$D$35:$H$41,7,FALSE),FALSE)","v":{"$error":"#N/A"}}]
[null,null,null,null,null,null,null,null,null,{"$f":"VLOOKUP(H12,Matrix!$C$36:$H$40,HLOOKUP(I12,Matrix!$D$35:$H$41,7,FALSE),FALSE)","v":{"$error":"#N/A"}}]
[null,null,null,null,null,null,null,null,null,{"$f":"VLOOKUP(H13,Matrix!$C$36:$H$40,HLOOKUP(I13,Matrix!$D$35:$H$41,7,FALSE),FALSE)","v":{"$error":"#N/A"}}]
[null,null,null,null,null,null,null,null,null,{"$f":"VLOOKUP(H14,Matrix!$C$36:$H$40,HLOOKUP(I14,Matrix!$D$35:$H$41,7,FALSE),FALSE)","v":{"$error":"#N/A"}}]
[null,null,null,null,null,null,null,null,null,{"$f":"VLOOKUP(H15,Matrix!$C$36:$H$40,HLOOKUP(I15,Matrix!$D$35:$H$41,7,FALSE),FALSE)","v":{"$error":"#N/A"}}]
[null,null,null,null,null,null,null,null,null,{"$f":"VLOOKUP(H16,Matrix!$C$36:$H$40,HLOOKUP(I16,Matrix!$D$35:$H$41,7,FALSE),FALSE)","v":{"$error":"#N/A"}}]
[null,null,null,null,null,null,null,null,null,{"$f":"VLOOKUP(H17,Matrix!$C$36:$H$40,HLOOKUP(I17,Matrix!$D$35:$H$41,7,FALSE),FALSE)","v":{"$error":"#N/A"}}]
[null,null,null,null,null,null,null,null,null,{"$f":"VLOOKUP(H18,Matrix!$C$36:$H$40,HLOOKUP(I18,Matrix!$D$35:$H$41,7,FALSE),FALSE)","v":{"$error":"#N/A"}}]
[null,null,null,null,null,null,null,null,null,{"$f":"VLOOKUP(H19,Matrix!$C$36:$H$40,HLOOKUP(I19,Matrix!$D$35:$H$41,7,FALSE),FALSE)","v":{"$error":"#N/A"}}]
[null,null,null,null,null,null,null,null,null,{"$f":"VLOOKUP(H20,Matrix!$C$36:$H$40,HLOOKUP(I20,Matrix!$D$35:$H$41,7,FALSE),FALSE)","v":{"$error":"#N/A"}}]
[null,null,null,null,null,null,null,null,null,{"$f":"VLOOKUP(H21,Matrix!$C$36:$H$40,HLOOKUP(I21,Matrix!$D$35:$H$41,7,FALSE),FALSE)","v":{"$error":"#N/A"}}]
[null,null,null,null,null,null,null,null,null,{"$f":"VLOOKUP(H22,Matrix!$C$36:$H$40,HLOOKUP(I22,Matrix!$D$35:$H$41,7,FALSE),FALSE)","v":{"$error":"#N/A"}}]
[null,null,null,null,null,null,null,null,null,{"$f":"VLOOKUP(H23,Matrix!$C$36:$H$40,HLOOKUP(I23,Matrix!$D$35:$H$41,7,FALSE),FALSE)","v":{"$error":"#N/A"}}]
[null,null,null,null,null,null,null,null,null,{"$f":"VLOOKUP(H24,Matrix!$C$36:$H$40,HLOOKUP(I24,Matrix!$D$35:$H$41,7,FALSE),FALSE)","v":{"$error":"#N/A"}}]
[null,null,null,null,null,null,null,null,null,{"$f":"VLOOKUP(H25,Matrix!$C$36:$H$40,HLOOKUP(I25,Matrix!$D$35:$H$41,7,FALSE),FALSE)","v":{"$error":"#N/A"}}]
[null,null,null,null,null,null,null,null,null,{"$f":"VLOOKUP(H26,Matrix!$C$36:$H$40,HLOOKUP(I26,Matrix!$D$35:$H$41,7,FALSE),FALSE)","v":{"$error":"#N/A"}}]
[null,null,null,null,null,null,null,null,null,{"$f":"VLOOKUP(H27,Matrix!$C$36:$H$40,HLOOKUP(I27,Matrix!$D$35:$H$41,7,FALSE),FALSE)","v":{"$error":"#N/A"}}]
[null,null,null,null,null,null,null,null,null,{"$f":"VLOOKUP(H28,Matrix!$C$36:$H$40,HLOOKUP(I28,Matrix!$D$35:$H$41,7,FALSE),FALSE)","v":{"$error":"#N/A"}}]
[null,null,null,null,null,null,null,null,null,{"$f":"VLOOKUP(H29,Matrix!$C$36:$H$40,HLOOKUP(I29,Matrix!$D$35:$H$41,7,FALSE),FALSE)","v":{"$error":"#N/A"}}]
[null,null,null,null,null,null,null,null,null,{"$f":"VLOOKUP(H30,Matrix!$C$36:$H$40,HLOOKUP(I30,Matrix!$D$35:$H$41,7,FALSE),FALSE)","v":{"$error":"#N/A"}}]
[null,null,null,null,null,null,null,null,null,{"$f":"VLOOKUP(H31,Matrix!$C$36:$H$40,HLOOKUP(I31,Matrix!$D$35:$H$41,7,FALSE),FALSE)","v":{"$error":"#N/A"}}]
[null,null,null,null,null,null,null,null,null,{"$f":"VLOOKUP(H32,Matrix!$C$36:$H$40,HLOOKUP(I32,Matrix!$D$35:$H$41,7,FALSE),FALSE)","v":{"$error":"#N/A"}}]
[null,null,null,null,null,null,null,null,null,{"$f":"VLOOKUP(H33,Matrix!$C$36:$H$40,HLOOKUP(I33,Matrix!$D$35:$H$41,7,FALSE),FALSE)","v":{"$error":"#N/A"}}]
[null,null,null,null,null,null,null,null,null,{"$f":"VLOOKUP(H34,Matrix!$C$36:$H$40,HLOOKUP(I34,Matrix!$D$35:$H$41,7,FALSE),FALSE)","v":{"$error":"#N/A"}}]
[null,null,null,null,null,null,null,null,null,{"$f":"VLOOKUP(H35,Matrix!$C$36:$H$40,HLOOKUP(I35,Matrix!$D$35:$H$41,7,FALSE),FALSE)","v":{"$error":"#N/A"}}]
[null,null,null,null,null,null,null,null,null,{"$f":"VLOOKUP(H36,Matrix!$C$36:$H$40,HLOOKUP(I36,Matrix!$D$35:$H$41,7,FALSE),FALSE)","v":{"$error":"#N/A"}}]
[null,null,null,null,null,null,null,null,null,{"$f":"VLOOKUP(H37,Matrix!$C$36:$H$40,HLOOKUP(I37,Matrix!$D$35:$H$41,7,FALSE),FALSE)","v":{"$error":"#N/A"}}]
[null,null,null,null,null,null,null,null,null,{"$f":"VLOOKUP(H38,Matrix!$C$36:$H$40,HLOOKUP(I38,Matrix!$D$35:$H$41,7,FALSE),FALSE)","v":{"$error":"#N/A"}}]
[null,null,null,null,null,null,null,null,null,{"$f":"VLOOKUP(H39,Matrix!$C$36:$H$40,HLOOKUP(I39,Matrix!$D$35:$H$41,7,FALSE),FALSE)","v":{"$error":"#N/A"}}]
[null,null,null,null,null,null,null,null,null,{"$f":"VLOOKUP(H40,Matrix!$C$36:$H$40,HLOOKUP(I40,Matrix!$D$35:$H$41,7,FALSE),FALSE)","v":{"$error":"#N/A"}}]
[null,null,null,null,null,null,null,null,null,{"$f":"VLOOKUP(H41,Matrix!$C$36:$H$40,HLOOKUP(I41,Matrix!$D$35:$H$41,7,FALSE),FALSE)","v":{"$error":"#N/A"}}]
[null,null,null,null,null,null,null,null,null,{"$f":"VLOOKUP(H42,Matrix!$C$36:$H$40,HLOOKUP(I42,Matrix!$D$35:$H$41,7,FALSE),FALSE)","v":{"$error":"#N/A"}}]
[null,null,null,null,null,null,null,null,null,{"$f":"VLOOKUP(H43,Matrix!$C$36:$H$40,HLOOKUP(I43,Matrix!$D$35:$H$41,7,FALSE),FALSE)","v":{"$error":"#N/A"}}]
[null,null,null,null,null,null,null,null,null,{"$f":"VLOOKUP(H44,Matrix!$C$36:$H$40,HLOOKUP(I44,Matrix!$D$35:$H$41,7,FALSE),FALSE)","v":{"$error":"#N/A"}}]
[null,null,null,null,null,null,null,null,null,{"$f":"VLOOKUP(H45,Matrix!$C$36:$H$40,HLOOKUP(I45,Matrix!$D$35:$H$41,7,FALSE),FALSE)","v":{"$error":"#N/A"}}]
[null,null,null,null,null,null,null,null,null,{"$f":"VLOOKUP(H46,Matrix!$C$36:$H$40,HLOOKUP(I46,Matrix!$D$35:$H$41,7,FALSE),FALSE)","v":{"$error":"#N/A"}}]
[null,null,null,null,null,null,null,null,null,{"$f":"VLOOKUP(H47,Matrix!$C$36:$H$40,HLOOKUP(I47,Matrix!$D$35:$H$41,7,FALSE),FALSE)","v":{"$error":"#N/A"}}]
[null,null,null,null,null,null,null,null,null,{"$f":"VLOOKUP(H48,Matrix!$C$36:$H$40,HLOOKUP(I48,Matrix!$D$35:$H$41,7,FALSE),FALSE)","v":{"$error":"#N/A"}}]
[null,null,null,null,null,null,null,null,null,{"$f":"VLOOKUP(H49,Matrix!$C$36:$H$40,HLOOKUP(I49,Matrix!$D$35:$H$41,7,FALSE),FALSE)","v":{"$error":"#N/A"}}]
[null,null,null,null,null,null,null,null,null,{"$f":"VLOOKUP(H50,Matrix!$C$36:$H$40,HLOOKUP(I50,Matrix!$D$35:$H$41,7,FALSE),FALSE)","v":{"$error":"#N/A"}}]
[null,null,null,null,null,null,null,null,null,{"$f":"VLOOKUP(H51,Matrix!$C$36:$H$40,HLOOKUP(I51,Matrix!$D$35:$H$41,7,FALSE),FALSE)","v":{"$error":"#N/A"}}]
[null,null,null,null,null,null,null,null,null,{"$f":"VLOOKUP(H52,Matrix!$C$36:$H$40,HLOOKUP(I52,Matrix!$D$35:$H$41,7,FALSE),FALSE)","v":{"$error":"#N/A"}}]
[null,null,null,null,null,null,null,null,null,{"$f":"VLOOKUP(H53,Matrix!$C$36:$H$40,HLOOKUP(I53,Matrix!$D$35:$H$41,7,FALSE),FALSE)","v":{"$error":"#N/A"}}]
[null,null,null,null,null,null,null,null,null,{"$f":"VLOOKUP(H54,Matrix!$C$36:$H$40,HLOOKUP(I54,Matrix!$D$35:$H$41,7,FALSE),FALSE)","v":{"$error":"#N/A"}}]
[null,null,null,null,null,null,null,null,null,{"$f":"VLOOKUP(H55,Matrix!$C$36:$H$40,HLOOKUP(I55,Matrix!$D$35:$H$41,7,FALSE),FALSE)","v":{"$error":"#N/A"}}]
[null,null,null,null,null,null,null,null,null,{"$f":"VLOOKUP(H56,Matrix!$C$36:$H$40,HLOOKUP(I56,Matrix!$D$35:$H$41,7,FALSE),FALSE)","v":{"$error":"#N/A"}}]
[null,null,null,null,null,null,null,null,null,{"$f":"VLOOKUP(H57,Matrix!$C$36:$H$40,HLOOKUP(I57,Matrix!$D$35:$H$41,7,FALSE),FALSE)","v":{"$error":"#N/A"}}]
[null,null,null,null,null,null,null,null,null,{"$f":"VLOOKUP(H58,Matrix!$C$36:$H$40,HLOOKUP(I58,Matrix!$D$35:$H$41,7,FALSE),FALSE)","v":{"$error":"#N/A"}}]
[null,null,null,null,null,null,null,null,null,{"$f":"VLOOKUP(H59,Matrix!$C$36:$H$40,HLOOKUP(I59,Matrix!$D$35:$H$41,7,FALSE),FALSE)","v":{"$error":"#N/A"}}]
[null,null,null,null,null,null,null,null,null,{"$f":"VLOOKUP(H60,Matrix!$C$36:$H$40,HLOOKUP(I60,Matrix!$D$35:$H$41,7,FALSE),FALSE)","v":{"$error":"#N/A"}}]
[null,null,null,null,null,null,null,null,null,{"$f":"VLOOKUP(H61,Matrix!$C$36:$H$40,HLOOKUP(I61,Matrix!$D$35:$H$41,7,FALSE),FALSE)","v":{"$error":"#N/A"}}]
[null,null,null,null,null,null,null,null,null,{"$f":"VLOOKUP(H62,Matrix!$C$36:$H$40,HLOOKUP(I62,Matrix!$D$35:$H$41,7,FALSE),FALSE)","v":{"$error":"#N/A"}}]
[null,null,null,null,null,null,null,null,null,{"$f":"VLOOKUP(H63,Matrix!$C$36:$H$40,HLOOKUP(I63,Matrix!$D$35:$H$41,7,FALSE),FALSE)","v":{"$error":"#N/A"}}]
[null,null,null,null,null,null,null,null,null,{"$f":"VLOOKUP(H64,Matrix!$C$36:$H$40,HLOOKUP(I64,Matrix!$D$35:$H$41,7,FALSE),FALSE)","v":{"$error":"#N/A"}}]
[null,null,null,null,null,null,null,null,null,{"$f":"VLOOKUP(H65,Matrix!$C$36:$H$40,HLOOKUP(I65,Matrix!$D$35:$H$41,7,FALSE),FALSE)","v":{"$error":"#N/A"}}]
[null,null,null,null,null,null,null,null,null,{"$f":"VLOOKUP(H66,Matrix!$C$36:$H$40,HLOOKUP(I66,Matrix!$D$35:$H$41,7,FALSE),FALSE)","v":{"$error":"#N/A"}}]
[null,null,null,null,null,null,null,null,null,{"$f":"VLOOKUP(H67,Matrix!$C$36:$H$40,HLOOKUP(I67,Matrix!$D$35:$H$41,7,FALSE),FALSE)","v":{"$error":"#N/A"}}]
[null,null,null,null,null,null,null,null,null,{"$f":"VLOOKUP(H68,Matrix!$C$36:$H$40,HLOOKUP(I68,Matrix!$D$35:$H$41,7,FALSE),FALSE)","v":{"$error":"#N/A"}}]
[null,null,null,null,null,null,null,null,null,{"$f":"VLOOKUP(H69,Matrix!$C$36:$H$40,HLOOKUP(I69,Matrix!$D$35:$H$41,7,FALSE),FALSE)","v":{"$error":"#N/A"}}]
[null,null,null,null,null,null,null,null,null,{"$f":"VLOOKUP(H70,Matrix!$C$36:$H$40,HLOOKUP(I70,Matrix!$D$35:$H$41,7,FALSE),FALSE)","v":{"$error":"#N/A"}}]
[null,null,null,null,null,null,null,null,null,{"$f":"VLOOKUP(H71,Matrix!$C$36:$H$40,HLOOKUP(I71,Matrix!$D$35:$H$41,7,FALSE),FALSE)","v":{"$error":"#N/A"}}]
[null,null,null,null,null,null,null,null,null,{"$f":"VLOOKUP(H72,Matrix!$C$36:$H$40,HLOOKUP(I72,Matrix!$D$35:$H$41,7,FALSE),FALSE)","v":{"$error":"#N/A"}}]
[null,null,null,null,null,null,null,null,null,{"$f":"VLOOKUP(H73,Matrix!$C$36:$H$40,HLOOKUP(I73,Matrix!$D$35:$H$41,7,FALSE),FALSE)","v":{"$error":"#N/A"}}]
[null,null,null,null,null,null,null,null,null,{"$f":"VLOOKUP(H74,Matrix!$C$36:$H$40,HLOOKUP(I74,Matrix!$D$35:$H$41,7,FALSE),FALSE)","v":{"$error":"#N/A"}}]
[null,null,null,null,null,null,null,null,null,{"$f":"VLOOKUP(H75,Matrix!$C$36:$H$40,HLOOKUP(I75,Matrix!$D$35:$H$41,7,FALSE),FALSE)","v":{"$error":"#N/A"}}]
[null,null,null,null,null,null,null,null,null,{"$f":"VLOOKUP(H76,Matrix!$C$36:$H$40,HLOOKUP(I76,Matrix!$D$35:$H$41,7,FALSE),FALSE)","v":{"$error":"#N/A"}}]
[null,null,null,null,null,null,null,null,null,{"$f":"VLOOKUP(H77,Matrix!$C$36:$H$40,HLOOKUP(I77,Matrix!$D$35:$H$41,7,FALSE),FALSE)","v":{"$error":"#N/A"}}]
[null,null,null,null,null,null,null,null,null,{"$f":"VLOOKUP(H78,Matrix!$C$36:$H$40,HLOOKUP(I78,Matrix!$D$35:$H$41,7,FALSE),FALSE)","v":{"$error":"#N/A"}}]
[null,null,null,null,null,null,null,null,null,{"$f":"VLOOKUP(H79,Matrix!$C$36:$H$40,HLOOKUP(I79,Matrix!$D$35:$H$41,7,FALSE),FALSE)","v":{"$error":"#N/A"}}]
[null,null,null,null,null,null,null,null,null,{"$f":"VLOOKUP(H80,Matrix!$C$36:$H$40,HLOOKUP(I80,Matrix!$D$35:$H$41,7,FALSE),FALSE)","v":{"$error":"#N/A"}}]
[null,null,null,null,null,null,null,null,null,{"$f":"VLOOKUP(H81,Matrix!$C$36:$H$40,HLOOKUP(I81,Matrix!$D$35:$H$41,7,FALSE),FALSE)","v":{"$error":"#N/A"}}]
[null,null,null,null,null,null,null,null,null,{"$f":"VLOOKUP(H82,Matrix!$C$36:$H$40,HLOOKUP(I82,Matrix!$D$35:$H$41,7,FALSE),FALSE)","v":{"$error":"#N/A"}}]
[null,null,null,null,null,null,null,null,null,{"$f":"VLOOKUP(H83,Matrix!$C$36:$H$40,HLOOKUP(I83,Matrix!$D$35:$H$41,7,FALSE),FALSE)","v":{"$error":"#N/A"}}]
[null,null,null,null,null,null,null,null,null,{"$f":"VLOOKUP(H84,Matrix!$C$36:$H$40,HLOOKUP(I84,Matrix!$D$35:$H$41,7,FALSE),FALSE)","v":{"$error":"#N/A"}}]
[null,null,null,null,null,null,null,null,null,{"$f":"VLOOKUP(H85,Matrix!$C$36:$H$40,HLOOKUP(I85,Matrix!$D$35:$H$41,7,FALSE),FALSE)","v":{"$error":"#N/A"}}]
[null,null,null,null,null,null,null,null,null,{"$f":"VLOOKUP(H86,Matrix!$C$36:$H$40,HLOOKUP(I86,Matrix!$D$35:$H$41,7,FALSE),FALSE)","v":{"$error":"#N/A"}}]
[null,null,null,null,null,null,null,null,null,{"$f":"VLOOKUP(H87,Matrix!$C$36:$H$40,HLOOKUP(I87,Matrix!$D$35:$H$41,7,FALSE),FALSE)","v":{"$error":"#N/A"}}]
[null,null,null,null,null,null,null,null,null,{"$f":"VLOOKUP(H88,Matrix!$C$36:$H$40,HLOOKUP(I88,Matrix!$D$35:$H$41,7,FALSE),FALSE)","v":{"$error":"#N/A"}}]
[null,null,null,null,null,null,null,null,null,{"$f":"VLOOKUP(H89,Matrix!$C$36:$H$40,HLOOKUP(I89,Matrix!$D$35:$H$41,7,FALSE),FALSE)","v":{"$error":"#N/A"}}]
[null,null,null,null,null,null,null,null,null,{"$f":"VLOOKUP(H90,Matrix!$C$36:$H$40,HLOOKUP(I90,Matrix!$D$35:$H$41,7,FALSE),FALSE)","v":{"$error":"#N/A"}}]
[null,null,null,null,null,null,null,null,null,{"$f":"VLOOKUP(H91,Matrix!$C$36:$H$40,HLOOKUP(I91,Matrix!$D$35:$H$41,7,FALSE),FALSE)","v":{"$error":"#N/A"}}]
[null,null,null,null,null,null,null,null,null,{"$f":"VLOOKUP(H92,Matrix!$C$36:$H$40,HLOOKUP(I92,Matrix!$D$35:$H$41,7,FALSE),FALSE)","v":{"$error":"#N/A"}}]
[null,null,null,null,null,null,null,null,null,{"$f":"VLOOKUP(H93,Matrix!$C$36:$H$40,HLOOKUP(I93,Matrix!$D$35:$H$41,7,FALSE),FALSE)","v":{"$error":"#N/A"}}]
[null,null,null,null,null,null,null,null,null,{"$f":"VLOOKUP(H94,Matrix!$C$36:$H$40,HLOOKUP(I94,Matrix!$D$35:$H$41,7,FALSE),FALSE)","v":{"$error":"#N/A"}}]
[null,null,null,null,null,null,null,null,null,{"$f":"VLOOKUP(H95,Matrix!$C$36:$H$40,HLOOKUP(I95,Matrix!$D$35:$H$41,7,FALSE),FALSE)","v":{"$error":"#N/A"}}]
[null,null,null,null,null,null,null,null,null,{"$f":"VLOOKUP(H96,Matrix!$C$36:$H$40,HLOOKUP(I96,Matrix!$D$35:$H$41,7,FALSE),FALSE)","v":{"$error":"#N/A"}}]
[null,null,null,null,null,null,null,null,null,{"$f":"VLOOKUP(H97,Matrix!$C$36:$H$40,HLOOKUP(I97,Matrix!$D$35:$H$41,7,FALSE),FALSE)","v":{"$error":"#N/A"}}]
[null,null,null,null,null,null,null,null,null,{"$f":"VLOOKUP(H98,Matrix!$C$36:$H$40,HLOOKUP(I98,Matrix!$D$35:$H$41,7,FALSE),FALSE)","v":{"$error":"#N/A"}}]
[null,null,null,null,null,null,null,null,null,{"$f":"VLOOKUP(H99,Matrix!$C$36:$H$40,HLOOKUP(I99,Matrix!$D$35:$H$41,7,FALSE),FALSE)","v":{"$error":"#N/A"}}]
[null,null,null,null,null,null,null,null,null,{"$f":"VLOOKUP(H100,Matrix!$C$36:$H$40,HLOOKUP(I100,Matrix!$D$35:$H$41,7,FALSE),FALSE)","v":{"$error":"#N/A"}}]

{"sheet":"Revised Data","index":5,"n_rows":98,"n_cols":12,"rows_kept":98,"cut":false,"hidden":true,"merged":[]}
[null,null,null,null,null,null,null,null,null,"Tags","Tag","Simpler"]
[null,null,null,null,"Contractually Mandated (D)",null,"Type (B)",null,null,null,"Adaptability","Design"]
[null,null,null,null,"Not Mandatory",null,"Improvement",null,null,null,"Air Quality ","Environmental Discharges"]
[null,null,null,null,"Mandatory",null,"Initiative",null,null,null,"Asphalt","Resources"]
[null,null,null,"Theme (A3)/A",null,null,"Innovation",null,null,null,"Barriers","Road Elements & Facilities"]
[null,"IS Technical Manual Used (A11)",null,"Governance",null,null,null,null,null,null,"Buy Local","Procurement"]
[null,"Planning (Version 2.0)",null,"Economic","Contract Minimum (E)",null,null,null,null,null,"Carbon Sequestration","Energy"]
[null,"Design and As Built (Version 2.0)",null,"Environmental","Level 1",null,null,null,null,null,"Circular Economy","Resource Efficiency"]
[null,"Design and As Built  (Version 2.1)",null,"Social ","Level 2",null,null,null,null,null,"Climate Change Adaptation","Resilience"]
[null,"Design and As Built Approved Trial (Version 2.0 & 2.1)",null,null,"Level 3",null,null,null,null,null,"Community and Stakeholder Engagement","Stakeholder Engagement"]
[null,"IS Essentials (Version 2.1)",null,"Technical Manual Used for Credit (B3)","5% Reduction",null,null,null,null,null,"Concrete Mixes","Resources"]
[null,null,null,"Planning Version 2.0","10% Reduction",null,null,null,null,null,"Connectivity","Design"]
[null,"Rating Type (A12)",null,"Design & AsBuilt Version 2.0","15% Reduction",null,null,null,null,null,"Conservation ","Environment"]
[null,"Self Assessment",null,"Design & AsBuilt Version 2.1","20% Reduction",null,null,null,null,null,"Construction - Temporary Works","Construction"]
[null,"Formal Assessment",null,"IS Essentials Version 2.1",null,null,null,null,null,null,"Construction Methodology","Construction"]
[null,"IS Essentials Assessment",null,null,null,null,null,null,null,null,"Cyclists & Pedestrian Facilities","Road Elements & Facilities"]
[null,null,null,null,"Status Update (I)",null,null,null,null,null,"Decision Making","Leadership & Processes"]
[null,"Current Rating Phase (A13)",null,null,"Complete","0,176,240",null,null,null,null,"Design - Drainage","Design"]
[null,"Planning",null,null,"On Track","146,208,80",null,null,null,null,"Design - Durability","Design"]
[null,"Design",null,null,"Proposed","255,255,0",null,null,null,null,"Design - Pavement","Design"]
[null,"As Built",null,null,"Behind","237,125,49",null,null,null,null,"Design - Road","Design"]
[null,null,null,null,"Abandoned","255,0,0",null,null,null,null,"Design - Roundabout","Design"]
[null,"Month of Reporting Period (A16)",null,null,"Not Targeting",191191191,null,null,null,null,"Design - Value Engineering","Design"]
[null,"January",null,null,"Scoped Out","0,0,0",null,null,null,null,"Diversity & Inclusion","Workforce"]
[null,"February",null,null,null,null,null,null,null,null,"Donation - Monetary ","Economic"]
[null,"March",null,null,null,null,null,null,null,null,"Donation - Time/Service","Economic"]
[null,"April",null,null,"Risk of Not Achieving",null,null,null,null,null,"Drainage","Road Elements & Facilities"]
[null,"May",null,null,"Very Low","146,208,80",null,null,null,null,"Ecology - Conservation","Ecology"]
[null,"June",null,null,"Low",196215155,null,null,null,null,"Ecology - Habitat and Connectivity","Ecology"]
[null,"July",null,null,"Moderate","255,255,0",null,null,null,null,"Ecology - Seed Collection","Ecology"]
[null,"August",null,null,"High","237,125,49",null,null,null,null,"Ecology - Topsoil","Ecology"]
[null,"September",null,null,"Very High","255,0,0",null,null,null,null,"Education - Research Opportunity","Education"]
[null,"October",null,null,"Scoped Out","0,0,0",null,null,null,null,"Educational Institutions","Education"]
[null,"November",null,null,null,null,null,null,null,null,"Electric Vehicles/Fleet","Plant"]
[null,"December",null,null,null,null,null,null,null,null,"Emissions Reduction","Energy"]
[null,null,null,null,"Promotion Opportunity",null,null,null,null,null,"Energy Efficiency","Energy"]
[null,null,null,null,"Yes",null,null,null,null,null,"Environmental Discharges","Environmental Discharges"]
[null,"Under Development",null,null,"Potential",null,null,null,null,null,"Environmental Enhancement ","Environment"]
[null,"Submitted - Reviews Pending",null,null,"No ",null,null,null,null,null,"Fences","Road Elements & Facilities"]
[null,"Verified",null,null,null,null,null,null,null,null,"Fencing","Fencing & Road Furniture"]
[null,null,null,null,null,null,null,null,null,null,"Food Organics","Resource Recovery"]
[null,"Planning Status",null,null,null,null,null,null,null,null,"Governance","Governance"]
[null,"Not Applicable",null,null,null,null,null,null,null,null,"Green Waste / Mulch","Resource Recovery"]
[null,"Under Development",null,null,null,null,null,null,null,null,"Heritage","Heritage"]
[null,"Submitted - Reviews/Verification Pending",null,null,null,null,null,null,null,null,"ITS - CCTV","ITS"]
[null,"Verified",null,null,null,null,null,null,null,null,"ITS - Digital IP Network Cameras","ITS"]
[null,null,null,null,null,null,null,null,null,null,"Leadership","Leadership"]
[null,"Design And As Built Status",null,null,null,null,null,null,null,null,"Leaving a Lasting Legacy","Legacy"]
[null,"Not Applicable",null,null,null,null,null,null,null,null,"Legal Compliance","Governance"]
[null,"Planned, Not Started",null,null,null,null,null,null,null,null,"Life Cycle Assessment","Life Cycle Assessment"]
[null,"Under Development",null,null,null,null,null,null,null,null,"Lighting","Lighting"]
[null,"Submitted - Reviews/Verification Pending",null,null,null,null,null,null,null,null,"Local Government ","Local Government"]
[null,"Verified",null,null,null,null,null,null,null,null,"Management Systems and Processes","Management Systems and Processes"]
[null,null,null,null,null,null,null,null,null,null,"Noise Management","Noise"]
[null,null,null,null,null,null,null,null,null,null,"Noise Walls","Road Elements & Facilities"]
[null,null,null,null,null,null,null,null,null,null,"Offsets - Biological","Ecology"]
[null,null,null,null,null,null,null,null,null,null,"Offsets - Emissions","Energy"]
[null,null,null,null,null,null,null,null,null,null,"Options Assessment ","Management Systems and Processes"]
[null,null,null,null,null,null,null,null,null,null,"Paint & Line Marking","Road Elements"]
[null,null,null,null,null,null,null,null,null,null,"Paths","Road Elements & Facilities"]
[null,null,null,null,null,null,null,null,null,null,"Pavement","Road Elements & Facilities"]
[null,null,null,null,null,null,null,null,null,null,"Plant & Equipment","Plant & Equipment"]
[null,null,null,null,null,null,null,null,null,null,"Poles & Lights","Road Elements & Facilities"]
[null,null,null,null,null,null,null,null,null,null,"Policy & Strategy Alignment","Policy & Strategy"]
[null,null,null,null,null,null,null,null,null,null,"Portland Cement Replacement","Materials"]
[null,null,null,null,null,null,null,null,null,null,"Pre-cast Construction","Materials"]
[null,null,null,null,null,null,null,null,null,null,"Procurement & Supply Chain","Procurement"]
[null,null,null,null,null,null,null,null,null,null,"Public Transport","Design"]
[null,null,null,null,null,null,null,null,null,null,"Recycled Products or Materials","Resources"]
[null,null,null,null,null,null,null,null,null,null,"Recycled Water","Water"]
[null,null,null,null,null,null,null,null,null,null,"Renewable Energy","Energy"]
[null,null,null,null,null,null,null,null,null,null,"Resource Efficiency","Resources"]
[null,null,null,null,null,null,null,null,null,null,"Retaining Walls","Road Elements & Facilities"]
[null,null,null,null,null,null,null,null,null,null,"Retaining Walls","Structures"]
[null,null,null,null,null,null,null,null,null,null,"Reticulation","Water"]
[null,null,null,null,null,null,null,null,null,null,"Road Furniture","Road Elements & Facilities"]
[null,null,null,null,null,null,null,null,null,null,"Roundabout","Structures"]
[null,null,null,null,null,null,null,null,null,null,"Safety Barriers","Structures"]
[null,null,null,null,null,null,null,null,null,null,"Signs","Road Elements & Facilities"]
[null,null,null,null,null,null,null,null,null,null,"Single Use Plastics","Resources"]
[null,null,null,null,null,null,null,null,null,null,"Site Office","Workforce"]
[null,null,null,null,null,null,null,null,null,null,"Spoil","Resource Recovery"]
[null,null,null,null,null,null,null,null,null,null,"Stakeholder Engagement","Stakeholder"]
[null,null,null,null,null,null,null,null,null,null,"Steel","Materials"]
[null,null,null,null,null,null,null,null,null,null,"Structures - Noise Walls","Structures"]
[null,null,null,null,null,null,null,null,null,null,"Surfacing","Road Elements & Facilities"]
[null,null,null,null,null,null,null,null,null,null,"Traffic Signals","Road Elements"]
[null,null,null,null,null,null,null,null,null,null,"Training and Development","Workforce"]
[null,null,null,null,null,null,null,null,null,null,"Underpass - Fauna","Ecology"]
[null,null,null,null,null,null,null,null,null,null,"Underpass - Pedestrian","Structures"]
[null,null,null,null,null,null,null,null,null,null,"Urban Design and Landscaping","Design"]
[null,null,null,null,null,null,null,null,null,null,"Value Engineering","Planning"]
[null,null,null,null,null,null,null,null,null,null,"Vegetation - Clearing","Vegetation"]
[null,null,null,null,null,null,null,null,null,null,"Vegetation - Rehabilitation/Revegetation","Vegetation"]
[null,null,null,null,null,null,null,null,null,null,"Vibration Control","Discharges"]
[null,null,null,null,null,null,null,null,null,null,"Waste Reduction","Resource Efficiency"]
[null,null,null,null,null,null,null,null,null,null,"Water Reduction","Water"]
[null,null,null,null,null,null,null,null,null,null,"Workforce Wellbeing","Workforce"]

{"sheet":"Theme, Categories, Credits","index":6,"n_rows":47,"n_cols":14,"rows_kept":47,"cut":false,"hidden":true,"merged":[]}
["Theme",null,null,null,null,null,null,"Planning Version 2.0","DAB Version 2.0","DAB Version 2.1","IS Essentials Version 2.1"]
[null,null,"Governance","Economic","Environmental ","Social",null,"Con-1 Strategic Context (Version 2.0)","Con-2 Urban and Landscape Design Context (V2.0)","Pla-2 Urban and Landscape Design (V2.1)","Lea-1 Integrating Sustainability (V2.1)",null,"Con-1 Strategic Context ","Con-1  "]
["Governance",{"$f":"COUNTA(OFFSET($C$2,1,MATCH('Credit Reporting '!$A2,$C$2:$F$2,0)-1,7))","v":1},"Context","Options Assessment & Business Case","Energy & Carbon","Stakeholder Engagement",null,"Con-2 Urban and Landscape Design Context (V2.0)","Lea-1 Integrating Sustainability (V2.0)","Lea-1 Integrating Sustainability (V2.1)","Lea-2 Risks and Opportunities (V2.1)",null,"Con-2 Urban and Landscape Design Context","Con-2 "]
[null,null,"Leadership & Management","Benefits","Green Infrastructure","Legacy",null,"Lea-1 Integrating Sustainability (V2.0)","Lea-2 Risks and Opportunities (V2.0)","Lea-2 Risks and Opportunities (V2.1)","Lea-3 Knowledge Sharing (V2.0)",null,"Ecn-1 Options Assessment","Ecn-1 "]
[null,null,"Risks and Opportunities",null,"Environmental Impacts","Heritage",null,"Lea-2 Risks and Opportunities (V2.0)","Lea-3 Knowledge Sharing (V2.0)","Lea-3 Knowledge Sharing (V2.0)","Spr-1 Sustainable Procurement Strategy (V2.1)",null,"Ecn-2 Valuing and Considering Externalities ","Ecn-2 "]
[null,null,"Knowledge Sharing",null,"Resource Efficiency","Workforce Sustainability",null,"Lea-3 Knowledge Sharing (V2.0)","Spr-1 Risk and Opportunity Assessment and Procurement Strategy (V2.0)","Spr-1 Sustainable Procurement Strategy (V2.1)","Spr-2 Supplier Assessment and Selection (V2.1)",null,"Ecn-3 Equity and Distributional Impacts","Ecn-3 "]
[null,null,"Sustainable Procurement",null,"Water",null,null,"Spr-1 Risk and Opportunity Assessment and Procurement Strategy (V2.0)","Spr-2 Supplier Assessment and Selection (V2.0)","Spr-2 Supplier Assessment and Selection (V2.1)","Spr-3 Contract and Supplier Management (V2.1)",null,"Ecn-4 Economic and Financial Sustainability","Ecn-4 "]
[null,null,"Resilience",null,"Ecology",null,null,"Spr-2 Supplier Assessment and Selection (V2.0)","Spr-3 Contract and Supplier Management (V2.0)","Spr-3 Contract and Supplier Management (V2.1)","Res-1 Climate and Natural Hazard Risks (V2.1)",null,"Ecn-4/Ecn-5 Benefits Mapping","Ecn-5 "]
[null,null,"Innovation",null,null,null,null,"Spr-3 Contract and Supplier Management (V2.0)","Res-1 Resilience Strategy (V2.0)","Res-1 Climate and Natural Hazard Risks (V2.1)","Res-2 Resilience Planning (V2.1)",null,"Eco-1 Ecological Assessment and Risk Management/ Ecological Risk Management and Enhancement","Eco-1 "]
[null,null,null,null,null,null,null,"Res-1 Resilience Strategy (V2.0)","Res-2 Climate and Natural Hazard Risks (V2.0)","Res-2 Resilience Planning (V2.1)","Inn-1 Innovation (V2.1)",null,"Eco-2 Ecological Monitoring","Eco-2"]
[null,null,null,null,null,null,null,"Res-2 Climate and Natural Hazard Risks (V2.0)","Inn-1 Innovation (V2.0)","Inn-1 Innovation (V2.1)","Ecn-1 Options Assessment (V2.1)",null,"Ene-1 Energy Efficiency","Ene-1 "]
[null,null,null,null,null,null,null,"Inn-1 Innovation (V2.0)","Ecn-1 Options Assessment (V2.0)","Ecn-1 Options Assessment (V2.1)","Ene-1 Energy Efficiency (V2.1)",null,"Ene-2 Renewable Energy","Ene-2 "]
["Economic",null,null,null,null,null,null,"Ecn-1 Options Assessment (V2.0)","Ecn-4 Economic and Financial Sustainability (V2.0)","Ecn-4 Benefits Mapping (V2.1)","Ene-2 Renewable Energy (V2.1)",null,"Ene-3 Offsetting","Ene-3 "]
[null,null,null,null,null,null,null,"Ecn-2 Valuing and Considering Externalities (V2.0)","Ecn-5 Benefits Mapping (V2.0)","Ene-1 Energy Efficiency (V2.1)","Ene-3 Offsetting (V2.1)",null,"Env-1 Receiving Water Quality","Env-1 "]
[null,null,null,null,null,null,null,"Ecn-3 Equity and Distributional Impacts (V2.0)","Ene-1 Energy Efficiency (V2.0)","Ene-2 Renewable Energy (V2.1)","Gre-1 Green Infrastructure (V2.1)",null,"Env-2 Noise","Env-2 "]
[null,null,null,null,null,null,null,"Ecn-4 Economic and Financial Sustainability (V2.0)","Ene-2 Renewable Energy (V2.0)","Ene-3 Offsetting (V2.1)","Env-1 Receiving Water Quality (V2.1)",null,"Env-3 Vibration","Env-3 "]
[null,null,null,null,null,null,null,"Ecn-5 Benefits Mapping (V2.0)","Ene-3 Offsetting (V2.0)","Gre-1 Green Infrastructure (V2.1)","Env-2 Noise (V2.1)",null,"Env-4 Air Quality","Env-4"]
[null,null,null,null,null,null,null,"Ene-1 Energy Efficiency (V2.0)","Gre-1 Green Infrastructure (V2.0)","Env-1 Receiving Water Quality (V2.1)","Env-3 Vibration (V2.1)",null,"Env-5 Light Pollution","Env-5"]
["Environmental",null,null,null,null,null,null,"Ene-2 Renewable Energy (V2.0)","Env-1 Receiving Water Quality (V2.0)","Env-2 Noise (V2.1)","Env-4 Air Quality (V2.1)",null,"Gre-1 Green Infrastructure","Gre-1"]
[null,null,null,null,null,null,null,"Ene-3 Offsetting (V2.0)","Env-2 Noise (V2.0)","Env-3 Vibration (V2.1)","Env-5 Light Pollution (V2.1)",null,"Her-1 Heritage Assessment and Monitoring","Her-1"]
[null,null,null,null,null,null,null,"Gre-1 Green Infrastructure (V2.0)","Env-3 Vibration (V2.0)","Env-4 Air Quality (V2.1)","Rso-1 Resource Strategy Development (V2.1)",null,"Inn-1 Innovation","Inn-1 "]
[null,null,null,null,null,null,null,"Env-1 Receiving Water Quality (V2.0)","Env-4 Air Quality (V2.0)","Env-5 Light Pollution (V2.1)","Rso-2 Contamination Remediation Material (V2.1)",null,"Lea-1 Integrating Sustainability","Lea-1"]
[null,null,null,null,null,null,null,"Env-2 Noise (V2.0)","Env-5 Light Pollution (V2.0)","Rso-1 Resource Strategy Development (V2.1)","Rso-3 Management of Acid Sulfate Soil (V2.1)",null,"Lea-2 Risks and Opportunities","Lea-2"]
[null,null,null,null,null,null,null,"Env-3 Vibration (V2.0)","Rso-1 Resource Strategy Development (V2.0)","Rso-2 Contamination Remediation Material (V2.1)","Rso-4 Resource Recovery and Management (V2.1)",null,"Lea-3 Knowledge Sharing","Lea-3 "]
[null,null,null,null,null,null,null,"Env-4 Air Quality (V2.0)","Rso-2 Contamination Remediation Material (V2.0)","Rso-3 Management of Acid Sulfate Soil (V2.1)","Rso-5 Adaptability and End of Life (V2.1)",null,"Leg-1 Leaving a Lasting Legacy","Leg-1"]
[null,null,null,null,null,null,null,"Env-5 Light Pollution (V2.0)","Rso-3 Management of Acid Sulfate Soil (V2.0)","Rso-4 Resource Recovery and Management (V2.1)","Rso-6 Material Lifecycle Impact Measure and Management (V2.1)",null,"Pla-2 Urban and Landscape Design ","Pla-2 "]
[null,null,null,null,null,null,null,"Rso-1 Resource Strategy Development (V2.0)","Rso-4 Resource Recovery (V2.0)","Rso-5 Adaptability and End of Life (V2.1)","Rso-7 Sustainability Labelled Products and Supply Chains (V2.1)",null,"Res-1/Res-2 Climate and Natural Hazard Risks","Res-1"]
[null,null,null,null,null,null,null,"Rso-2 Contamination Remediation Material (V2.0)","Rso-5 Adaptability (V2.0)","Rso-6 Material Lifecycle Impact Measure and Management (V2.1)","Wat-1 Water Use (V2.1)",null,"Res-1/Res-2 Resilience Strategy/Resilience Planning","Res-2"]
[null,null,null,null,null,null,null,"Rso-3 Management of Acid Sulfate Soil (V2.0)","Rso-6 Material Lifecycle Impact Measure and Management (V2.0)","Rso-7 Sustainability Labelled Products and Supply Chains (V2.1)","Wat-2 Appropriate Use of Water Sources (V2.1)",null,"Rso-1 Resource Strategy Development","Rso-1"]
[null,null,null,null,null,null,null,"Rso-4 Resource Recovery (V2.0)","Rso-7 Sustainability Labelled Products and Supply Chains (V2.0)","Wat-1 Water Use (V2.1)","Eco-1 Ecological Risk Management and Enhancement (V2.1)",null,"Rso-2 Contamination Remediation Material","Rso-2"]
[null,null,null,null,null,null,null,"Rso-5 Adaptability (V2.0)","Wat-1 Water Use (V2.0)","Wat-2 Appropriate Use of Water Sources (V2.1)","Eco-2 Ecological Monitoring (V2.1)",null,"Rso-3 Management of Acid Sulfate Soil","Rso-3"]
[null,null,null,null,null,null,null,"Wat-1 Water Use (V2.0)","Wat-2 Appropriate Use of Water Sources (V2.0)","Eco-1 Ecological Risk Management and Enhancement (V2.1)","Sta-1 Stakeholder Engagement Strategy (V2.1)",null,"Rso-4 Resource Recovery/Resource Recovery and Management","Rso-4"]
[null,null,null,null,null,null,null,"Wat-2 Appropriate Use of Water Sources (V2.0)","Eco-1 Ecological Assessment and Risk Management (V2.0)","Sta-1 Stakeholder Engagement Strategy (V2.1)","Sta-2 Stakeholder Engagement and Impacts (V2.1)",null,"Rso-5 Adaptability/Adaptability and End of Life","Rso-5"]
[null,null,null,null,null,null,null,"Eco-1 Ecological Assessment and Risk Management (V2.0)","Eco-2 Ecological Monitoring (V2.0)","Sta-2 Stakeholder Engagement and Impacts (V2.1)","Leg-1 Leaving a Lasting Legacy (V2.1)",null,"Rso-6 Material Lifecycle Impact Measure and Management","Rso-6 "]
[null,null,null,null,null,null,null,"Eco-2 Ecological Monitoring (V2.0)","Sta-1 Stakeholder Engagement Strategy Development (V2.0)","Leg-1 Leaving a Lasting Legacy (V2.1)","Her-1 Heritage Assessment and Monitoring (V2.1) ",null,"Rso-7 Sustainability Labelled Products and Supply Chains","Rso-7 "]
[null,null,null,null,null,null,null,"Sta-1 Stakeholder Engagement Strategy Development (V2.0)","Sta-2 Stakeholder Engagement Strategy Implementation (V2.0)","Her-1 Heritage Assessment and Monitoring (V2.1) ","Wfs-1 Jobs, Skills and Workforce Planning (V2.1)",null,"Spr-1 Risk and Opportunity Assessment and Procurement Strategy/Sustainable Procurement Strategy","Spr-1"]
[null,null,null,null,null,null,null,"Sta-2 Stakeholder Engagement Strategy Implementation (V2.0)","Leg-1 Leaving a Lasting Legacy (V2.0)","Wfs-1 Jobs, Skills and Workforce Planning (V2.1)","Wfs-3 Diversity and Inclusion (V2.1)",null,"Spr-2 Supplier Assessment and Selection ","Spr-2 "]
[null,null,null,null,null,null,null,"Leg-1 Leaving a Lasting Legacy (V2.0)","Her-1 Heritage Assessment and Monitoring (V2.0) ","Wfs-2 Workplace Culture and Wellbeing (V2.1)",null,null,"Spr-3 Contract and Supplier Management","Spr-3 "]
["Social",null,null,null,null,null,null,"Her-1 Heritage Assessment and Monitoring (V2.0) ","Wfs-1 Strategic Workforce Planning (V2.0)","Wfs-3 Diversity and Inclusion (V2.1)",null,null,"Sta-1 Stakeholder Engagement Strategy (Development)","Sta-1"]
[null,null,null,null,null,null,null,"Wfs-1 Strategic Workforce Planning (V2.0)","Wfs-2 Jobs and Skills (V2.0)","Wfs-4 Sustainable Site Facilities (V2.1)",null,null,"Sta-2 Stakeholder Engagement and Impacts/Stakeholder Engagement Strategy Implementation ","Sta-2 "]
[null,null,null,null,null,null,null,"Wfs-2 Jobs and Skills (V2.0)","Wfs-3 Workforce Culture and Wellbeing  (V2.0)",null,null,null,"Wat-1 Water Use ","Wat-1 "]
[null,null,null,null,null,null,null,null,"Wfs-4 Diversity and Inclusion (V2.0)",null,null,null,"Wat-2 Appropriate Use of Water Sources","Wat-2"]
[null,null,null,null,null,null,null,null,"Wfs-5 Sustainable Site Facilities (V2.0)",null,null,null,"Wfs-1 Jobs, Skills and Workforce Planning/Strategic Workforce Planning ","Wfs-1 "]
[null,null,null,null,null,null,null,null,null,null,null,null,"Wfs-2 Jobs and Skills/Workplace Culture and Wellbeing","Wfs-2"]
[null,null,null,null,null,null,null,null,null,null,null,null,"Wfs-3 Diversity and Inclusion/Workforce Culture and Wellbeing","Wfs-3"]
[null,null,null,null,null,null,null,null,null,null,null,null,"Wfs-4 Diversity and Inclusion ","Wfs-4"]
[null,null,null,null,null,null,null,null,null,null,null,null,"Wfs-4/Wfs-5 Sustainable Site Facilities","Wfs-5"]